fUSD/lending_fUSD_20260630
["ID","MTS","AMOUNT","RATE_DAILY","PERIOD"]
[426761651,1782787842000,-159.88,0.00012197,2]
[426761643,1782787842000,-891.0,0.00012114,2]
[426761639,1782787842000,-151.0,0.00012111,2]
[426761657,1782787842000,-917.0,0.00012297,2]
[426761681,1782787842000,-916.0,0.00012297,2]
[426761655,1782787842000,-151.0,0.00012297,2]
[426761671,1782787842000,-151.0,0.00012297,2]
[426761675,1782787842000,-151.0,0.00012297,2]
[426761669,1782787842000,-151.0,0.00012297,2]
[426761667,1782787842000,-152.0,0.00012297,2]
[426761665,1782787842000,-198.60447268,0.00012297,2]
[426761677,1782787842000,-150.0,0.00012297,2]
[426761663,1782787842000,-150.0,0.00012297,2]
[426761659,1782787842000,-150.0,0.00012297,2]
[426761673,1782787842000,-151.0,0.00012297,2]
[426761653,1782787842000,-225.03363061,0.00012197,2]
[426761661,1782787842000,-887.0,0.00012297,2]
[426761847,1782787843000,-649.67,0.00013698,2]
[426761845,1782787843000,-649.67,0.00013698,2]
[426761843,1782787843000,-649.67,0.00013698,2]
[426761833,1782787843000,-500.0,0.00013698,2]
[426761835,1782787843000,-500.0,0.00013698,2]
[426761831,1782787843000,-500.0,0.00013698,2]
[426761839,1782787843000,-649.67,0.00013698,2]
[426761837,1782787843000,-500.0,0.00013698,2]
[426761829,1782787843000,-500.0,0.00013698,2]
[426761827,1782787843000,-500.0,0.00013698,2]
[426761849,1782787843000,-649.67,0.00013698,2]
[426761822,1782787843000,-500.0,0.00013698,2]
[426761841,1782787843000,-649.67,0.00013698,2]
[426761869,1782787843000,-500.0,0.00013698,2]
[426761861,1782787843000,-500.0,0.00013698,2]
[426761860,1782787843000,-500.0,0.00013698,2]
[426761851,1782787843000,-649.67,0.00013698,2]
[426761853,1782787843000,-649.67,0.00013698,2]
[426761858,1782787843000,-649.67,0.00013698,2]
[426761859,1782787843000,-649.67,0.00013698,2]
[426761856,1782787843000,-649.67,0.00013698,2]
[426761863,1782787843000,-500.0,0.00013698,2]
[426761867,1782787843000,-500.0,0.00013698,2]
[426761865,1782787843000,-500.0,0.00013698,2]
[426761871,1782787843000,-500.0,0.00013698,2]
[426761873,1782787843000,-495.70927719,0.00013698,2]
[426761820,1782787843000,-500.0,0.00013698,2]
[426761862,1782787843000,-500.0,0.00013698,2]
[426761818,1782787843000,-500.0,0.00013698,2]
[426761754,1782787843000,-473.8932311,0.00013364,2]
[426761824,1782787843000,-500.0,0.00013698,2]
[426761884,1782787843000,-500.0,0.00013698,2]
[426761760,1782787843000,-167.92,0.00013409,2]
[426761756,1782787843000,-708.91593203,0.00013364,2]
[426761758,1782787843000,-350.0,0.00013377,2]
[426761762,1782787843000,-3063.99105208,0.0001343,2]
[426761773,1782787843000,-350.0,0.00013505,2]
[426761775,1782787843000,-350.0,0.00013609,2]
[426761777,1782787843000,-269.90821239,0.00013688,2]
[426761779,1782787843000,-500.0,0.00013698,2]
[426761781,1782787843000,-268.16029496,0.00013698,2]
[426761766,1782787843000,-150.0,0.00013464,2]
[426761764,1782787843000,-902.0,0.00013464,2]
[426761769,1782787843000,-162.02,0.00013477,2]
[426761816,1782787843000,-500.0,0.00013698,2]
[426761783,1782787843000,-500.0,0.00013698,2]
[426761771,1782787843000,-168.86,0.00013477,2]
[426761790,1782787843000,-502.16718812,0.00013698,2]
[426761792,1782787843000,-684.3,0.00013698,2]
[426761788,1782787843000,-514.27917343,0.00013698,2]
[426761798,1782787843000,-684.3,0.00013698,2]
[426761803,1782787843000,-684.3,0.00013698,2]
[426761801,1782787843000,-684.3,0.00013698,2]
[426761805,1782787843000,-684.3,0.00013698,2]
[426761794,1782787843000,-684.3,0.00013698,2]
[426761807,1782787843000,-684.3,0.00013698,2]
[426761809,1782787843000,-684.3,0.00013698,2]
[426761812,1782787843000,-684.3,0.00013698,2]
[426761814,1782787843000,-684.3,0.00013698,2]
[426761786,1782787843000,-503.28407295,0.00013698,2]
[426761878,1782787843000,-500.0,0.00013698,2]
[426761796,1782787843000,-684.3,0.00013698,2]
[426761886,1782787843000,-500.0,0.00013698,2]
[426761954,1782787843000,-4777.74,0.00014497,2]
[426761956,1782787843000,-1382.98,0.00014497,2]
[426761941,1782787843000,-335.00166265,0.00014178,2]
[426761959,1782787843000,-350.0,0.00014504,2]
[426761948,1782787843000,-199.13,0.00014436,2]
[426761946,1782787843000,-167.92,0.00014303,2]
[426761944,1782787843000,-350.0,0.0001427,2]
[426761961,1782787843000,-3174.20503177,0.00014563,2]
[426761974,1782787843000,-269.58426021,0.000149,2]
[426761980,1782787843000,-49784.0,0.00014986,2]
[426761976,1782787843000,-1983.043269,0.000149,2]
[426761978,1782787843000,-500.0,0.00014904,2]
[426761963,1782787843000,-735.07,0.00014664,2]
[426761950,1782787843000,-5367.9665418,0.00014484,2]
[426761982,1782787843000,-269.90821239,0.0001499,2]
[426761986,1782787843000,-684.3,0.00014999,2]
[426761969,1782787843000,-1243.8,0.00014832,2]
[426761965,1782787843000,-2000.0,0.000148,2]
[426761984,1782787843000,-151.0,0.00014997,2]
[426761967,1782787843000,-800.0,0.000148,5]
[426761993,1782787843000,-684.3,0.00014999,2]
[426761988,1782787843000,-684.3,0.00014999,2]
[426761991,1782787843000,-684.3,0.00014999,2]
[426761995,1782787843000,-684.3,0.00014999,2]
[426761996,1782787843000,-684.3,0.00014999,2]
[426761999,1782787843000,-684.3,0.00014999,2]
[426762001,1782787843000,-684.3,0.00014999,2]
[426761880,1782787843000,-500.0,0.00013698,2]
[426761971,1782787843000,-1000.0,0.000149,5]
[426761952,1782787843000,-274.83537065,0.00014484,10]
[426761942,1782787843000,-350.0,0.00014189,2]
[426761937,1782787843000,-500.0,0.00014178,2]
[426761882,1782787843000,-500.0,0.00013698,2]
[426761875,1782787843000,-502.66395581,0.00013698,2]
[426761897,1782787843000,-500.0,0.00013698,2]
[426761895,1782787843000,-500.0,0.00013698,2]
[426761892,1782787843000,-500.0,0.00013698,2]
[426761939,1782787843000,-500.0,0.00014178,2]
[426761893,1782787843000,-500.0,0.00013698,2]
[426761907,1782787843000,-500.0,0.00013699,2]
[426761909,1782787843000,-200.0,0.00013699,2]
[426761888,1782787843000,-500.0,0.00013698,2]
[426761899,1782787843000,-502.15172999,0.00013698,2]
[426761903,1782787843000,-500.0,0.00013698,2]
[426761911,1782787843000,-618.34,0.00013699,2]
[426761905,1782787843000,-500.0,0.00013698,2]
[426761890,1782787843000,-500.0,0.00013698,2]
[426761901,1782787843000,-500.0,0.00013698,2]
[426761912,1782787843000,-627.66130262,0.00013699,2]
[426761933,1782787843000,-736.0,0.00014126,2]
[426761935,1782787843000,-350.0,0.00014132,2]
[426761929,1782787843000,-3378.40529274,0.0001399,2]
[426761926,1782787843000,-442.41497,0.0001398,2]
[426761924,1782787843000,-442.41497,0.0001398,2]
[426761927,1782787843000,-442.41497,0.0001398,2]
[426761931,1782787843000,-2000.0,0.00014,2]
[426761922,1782787843000,-442.41498,0.0001398,2]
[426761916,1782787843000,-350.0,0.00013884,2]
[426761918,1782787843000,-442.41497,0.0001398,2]
[426761914,1782787843000,-162.09,0.00013852,2]
[426761920,1782787843000,-442.41497,0.0001398,2]
[426762037,1782787844000,-649.67,0.00014999,2]
[426762020,1782787844000,-500.0,0.00014999,2]
[426762031,1782787844000,-649.67,0.00014999,2]
[426762027,1782787844000,-379.66371852,0.00014999,2]
[426762029,1782787844000,-649.67,0.00014999,2]
[426762033,1782787844000,-649.67,0.00014999,2]
[426762035,1782787844000,-649.67,0.00014999,2]
[426762022,1782787844000,-500.0,0.00014999,2]
[426762012,1782787844000,-500.0,0.00014999,2]
[426762018,1782787844000,-500.0,0.00014999,2]
[426762016,1782787844000,-500.0,0.00014999,2]
[426762014,1782787844000,-500.0,0.00014999,2]
[426762005,1782787844000,-684.3,0.00014999,2]
[426762003,1782787844000,-684.3,0.00014999,2]
[426762010,1782787844000,-684.53752086,0.00014999,2]
[426762009,1782787844000,-684.3,0.00014999,2]
[426762039,1782787844000,-649.67,0.00014999,2]
[426762024,1782787844000,-500.0,0.00014999,2]
[426762041,1782787844000,-649.67,0.00014999,2]
[426762007,1782787844000,-684.3,0.00014999,2]
[426762055,1782787844000,-500.0,0.00014999,2]
[426762122,1782787844000,-1379.23116323,0.00015,2]
[426762120,1782787844000,-345.795564,0.00011069,2]
[426762076,1782787844000,-14976.96952,0.00015,2]
[426762073,1782787844000,-2750.33474763,0.00015,2]
[426762070,1782787844000,-192768.8928165,0.00015,2]
[426762067,1782787844000,-522.9943377,0.00014999,2]
[426762083,1782787844000,-957.211541,0.00015,2]
[426762081,1782787844000,-318414.83593428,0.00015,2]
[426762078,1782787844000,-1092.43116165,0.00015,2]
[426762068,1782787844000,-40616.25344412,0.00015,2]
[426762060,1782787844000,-500.0,0.00014999,2]
[426762051,1782787844000,-649.67,0.00014999,2]
[426762057,1782787844000,-500.0,0.00014999,2]
[426762047,1782787844000,-649.67,0.00014999,2]
[426762062,1782787844000,-500.0,0.00014999,2]
[426762043,1782787844000,-649.67,0.00014999,2]
[426762049,1782787844000,-649.67,0.00014999,2]
[426762053,1782787844000,-649.88233145,0.00014999,2]
[426762064,1782787844000,-500.0,0.00014999,2]
[426762045,1782787844000,-649.67,0.00014999,2]
[426762192,1782787845000,6.49300909,0.00010569,2]
[426762179,1782787845000,-2965.51136641,0.00015,2]
[426763730,1782787969000,347.28,9.714e-05,2]
[426763731,1782788046000,195.04192,0.0002,120]
[426763736,1782788155000,-302.25,0.00010049,2]
[426763737,1782788208000,-1694.19519473,0.00010125,2]
[426763739,1782788222000,153.41,9.984e-05,2]
[426763738,1782788222000,-1618.8274833,0.00010125,2]
[426763742,1782788235000,-721.32950005,0.00010125,2]
[426763743,1782788242000,-212.87,0.00010148,2]
[426763744,1782788242000,-176.53133632,0.0001022,2]
[426763745,1782788242000,-739.23483311,0.00010225,2]
[426763747,1782788242000,-169.94616157,0.00010225,2]
[426763748,1782788242000,-347.89044434,0.00010225,2]
[426763749,1782788242000,-150.0,0.0001023,2]
[426763746,1782788242000,-168.895193,0.00010225,2]
[426763751,1782788242000,-175.0,0.00010433,2]
[426763750,1782788242000,-150.0,0.00010332,2]
[426763752,1782788242000,-319.9,0.00010483,2]
[426763753,1782788242000,-313.39699091,0.00010569,2]
[426763755,1782788242000,-356.49394403,0.00010637,2]
[426763756,1782788242000,-347.28,0.00010737,2]
[426763759,1782788242000,-245.81878178,0.00010803,2]
[426763757,1782788242000,-160.0,0.00010769,2]
[426763758,1782788242000,-356.49394401,0.00010781,2]
[426763760,1782788242000,-242.17367976,0.00010803,2]
[426763761,1782788242000,-185.34265763,0.00010803,2]
[426763754,1782788242000,-182.73203354,0.00010569,2]
[426763763,1782788247000,-500.0,0.00010803,2]
[426763766,1782788247000,-500.0,0.00010803,2]
[426763765,1782788247000,-500.0,0.00010803,2]
[426763764,1782788247000,-500.0,0.00010803,2]
[426763767,1782788247000,-500.0,0.00010803,2]
[426763762,1782788247000,-97.86937481,0.00010803,2]
[426763769,1782788247000,-500.0,0.00010803,2]
[426763770,1782788247000,-168.37364727,0.00010803,2]
[426763772,1782788247000,-265.31366509,0.00010803,2]
[426763771,1782788247000,-500.0,0.00010803,2]
[426763773,1782788247000,-468.44331283,0.00010803,2]
[426763768,1782788247000,-500.0,0.00010803,2]
[426763780,1782788251000,-579.87465735,0.00010803,2]
[426763781,1782788251000,-500.0,0.00010803,2]
[426763779,1782788251000,-360.65676351,0.00010803,2]
[426763777,1782788251000,-372.34176263,0.00010803,2]
[426763778,1782788251000,-579.87465735,0.00010803,2]
[426763776,1782788251000,-500.0,0.00010803,2]
[426763775,1782788251000,-174.58837359,0.00010803,2]
[426763774,1782788251000,-31.55668717,0.00010803,2]
[426763782,1782788252000,-579.87465735,0.00010803,2]
[426763783,1782788252000,-153.03073765,0.00010803,2]
[426763785,1782788252000,-579.87465735,0.00010803,2]
[426763786,1782788252000,-8.4523887,0.00010803,2]
[426763784,1782788252000,-579.87465735,0.00010803,2]
[426763795,1782788253000,-369.4551299,0.00010803,2]
[426763794,1782788253000,-579.87465735,0.00010803,2]
[426763793,1782788253000,-579.87465735,0.00010803,2]
[426763792,1782788253000,-579.87465735,0.00010803,2]
[426763790,1782788253000,-579.87465735,0.00010803,2]
[426763791,1782788253000,-579.87465735,0.00010803,2]
[426763789,1782788253000,-579.87465735,0.00010803,2]
[426763787,1782788253000,-571.42226865,0.00010803,2]
[426763788,1782788253000,-579.87465735,0.00010803,2]
[426763797,1782788254000,-579.87465735,0.00010803,2]
[426763796,1782788254000,-210.41952745,0.00010803,2]
[426763798,1782788254000,-579.87465735,0.00010803,2]
[426763799,1782788254000,-579.87465735,0.00010803,2]
[426763802,1782788254000,-579.87465735,0.00010803,2]
[426763800,1782788254000,-579.87465735,0.00010803,2]
[426763804,1782788254000,-579.87465735,0.00010803,2]
[426763803,1782788254000,-579.87465735,0.00010803,2]
[426763805,1782788254000,-150.58321375,0.00010803,2]
[426763801,1782788254000,-579.87465735,0.00010803,2]
[426763812,1782788255000,-579.87465735,0.00010803,2]
[426763814,1782788255000,-511.58595495,0.00010803,2]
[426763813,1782788255000,-579.87465735,0.00010803,2]
[426763811,1782788255000,-579.87465735,0.00010803,2]
[426763808,1782788255000,-579.87465735,0.00010803,2]
[426763809,1782788255000,-579.87465735,0.00010803,2]
[426763810,1782788255000,-579.87465735,0.00010803,2]
[426763807,1782788255000,-579.87465735,0.00010803,2]
[426763806,1782788255000,-429.2914436,0.00010803,2]
[426763815,1782788256000,-68.2887024,0.00010803,2]
[426763816,1782788256000,-579.87465735,0.00010803,2]
[426763817,1782788256000,-579.87465735,0.00010803,2]
[426763819,1782788256000,-579.87465735,0.00010803,2]
[426763818,1782788256000,-579.87465735,0.00010803,2]
[426763825,1782788257000,-287.16061855,0.00010803,2]
[426763824,1782788257000,-292.7140388,0.00010803,2]
[426763823,1782788257000,-579.87465735,0.00010803,2]
[426763820,1782788257000,-579.87465735,0.00010803,2]
[426763822,1782788257000,-579.87465735,0.00010803,2]
[426763821,1782788257000,-579.87465735,0.00010803,2]
[426763826,1782788258000,-579.87465735,0.00010803,2]
[426763827,1782788258000,-579.87465735,0.00010803,2]
[426763828,1782788258000,-579.87465735,0.00010803,2]
[426763830,1782788258000,-579.87465735,0.00010803,2]
[426763831,1782788258000,-579.87465735,0.00010803,2]
[426763832,1782788258000,-601.35288205,0.00010803,2]
[426763834,1782788258000,-30.88567325,0.00010803,2]
[426763829,1782788258000,-579.87465735,0.00010803,2]
[426763833,1782788258000,-601.35288205,0.00010803,2]
[426763843,1782788259000,-220.06261685,0.00010803,2]
[426763842,1782788259000,-601.35288205,0.00010803,2]
[426763841,1782788259000,-601.35288205,0.00010803,2]
[426763839,1782788259000,-601.35288205,0.00010803,2]
[426763840,1782788259000,-601.35288205,0.00010803,2]
[426763838,1782788259000,-601.35288205,0.00010803,2]
[426763837,1782788259000,-601.35288205,0.00010803,2]
[426763836,1782788259000,-601.35288205,0.00010803,2]
[426763835,1782788259000,-570.4672088,0.00010803,2]
[426763844,1782788260000,-381.2902652,0.00010803,2]
[426763847,1782788260000,-601.35288205,0.00010803,2]
[426763845,1782788260000,-601.35288205,0.00010803,2]
[426763846,1782788260000,-601.35288205,0.00010803,2]
[426763850,1782788260000,-601.35288205,0.00010803,2]
[426763849,1782788260000,-601.35288205,0.00010803,2]
[426763851,1782788260000,-601.35288205,0.00010803,2]
[426763852,1782788260000,-409.23956045,0.00010803,2]
[426763848,1782788260000,-601.35288205,0.00010803,2]
[426763856,1782788267000,-601.35288205,0.00010803,2]
[426763853,1782788267000,-192.1133216,0.00010803,2]
[426763854,1782788267000,-601.35288205,0.00010803,2]
[426763855,1782788267000,-601.35288205,0.00010803,2]
[426763858,1782788267000,-601.35288205,0.00010803,2]
[426763859,1782788267000,-601.35288205,0.00010803,2]
[426763861,1782788267000,-598.41650405,0.00010803,2]
[426763860,1782788267000,-601.35288205,0.00010803,2]
[426763857,1782788267000,-601.35288205,0.00010803,2]
[426763863,1782788268000,-601.35288205,0.00010803,2]
[426763862,1782788268000,-2.936378,0.00010803,2]
[426763864,1782788268000,-601.35288205,0.00010803,2]
[426763865,1782788268000,-601.35288205,0.00010803,2]
[426763866,1782788268000,-601.35288205,0.00010803,2]
[426763869,1782788268000,-673.53278467,0.00010803,2]
[426763868,1782788268000,-673.53278467,0.00010803,2]
[426763870,1782788268000,-673.53278467,0.00010803,2]
[426763871,1782788268000,-398.98059255,0.00010803,2]
[426763867,1782788268000,-172.07314724,0.00010803,2]
[426763873,1782788269000,-673.53278467,0.00010803,2]
[426763872,1782788269000,-274.55219212,0.00010803,2]
[426763874,1782788269000,-673.53278467,0.00010803,2]
[426763875,1782788269000,-673.53278467,0.00010803,2]
[426763880,1782788269000,-699.94188453,0.00010805,2]
[426763877,1782788269000,-673.53278467,0.00010803,2]
[426763878,1782788269000,-500.0,0.00010804,2]
[426763879,1782788269000,-157.842,0.00010805,2]
[426763876,1782788269000,-673.53278467,0.00010803,2]
[426763882,1782788270000,-341.21233232,0.00010925,2]
[426763883,1782788270000,-356.49394401,0.00010925,2]
[426763884,1782788270000,-82.7016082,0.00010925,2]
[426763881,1782788270000,-4219.59211547,0.00010805,2]
[426763885,1782788271000,-111.94133083,0.00010925,2]
[426763886,1782788271000,-2500.0,0.00010925,2]
[426763887,1782788271000,-166.66,0.00010959,2]
[426763890,1782788271000,-1851.81711894,0.00011025,2]
[426763889,1782788271000,-151.0,0.00011022,2]
[426763888,1782788271000,-218.58155023,0.0001097,2]
[426763891,1782788272000,-5000.0,0.00011025,2]
[426763892,1782788353000,214.546112,0.0002,120]
[426763895,1782788476000,-151.0,0.00010915,2]
[426763896,1782788476000,-151.0,0.00010915,2]
[426763898,1782788476000,-151.0,0.00010915,2]
[426763897,1782788476000,-150.0,0.00010915,2]
[426763899,1782788476000,-152.0,0.00010915,2]
[426763900,1782788476000,-151.0,0.00010915,2]
[426763906,1782788476000,-151.0,0.00010925,2]
[426763901,1782788476000,-151.0,0.00010915,2]
[426763902,1782788476000,-152.0,0.00010915,2]
[426763905,1782788476000,-151.0,0.00010925,2]
[426763903,1782788476000,-151.0,0.00010915,2]
[426763907,1782788476000,-150.0,0.00010925,2]
[426763904,1782788476000,-198.60447268,0.00010925,2]
[426763909,1782788477000,-500.0,0.00010925,2]
[426763910,1782788477000,-500.0,0.00010925,2]
[426763908,1782788477000,-500.0,0.00010925,2]
[426763911,1782788477000,-420.11349684,0.00010925,2]
[426763914,1782788477000,-656.87320106,0.00010925,2]
[426763912,1782788477000,-162.40882942,0.00010925,2]
[426763916,1782788477000,-160.0,0.00010946,2]
[426763915,1782788477000,-1843.12679894,0.00010925,2]
[426763913,1782788477000,-250.0,0.00010925,2]
[426763917,1782788478000,-405.93088082,0.00011015,2]
[426763918,1782788478000,-228.7841868,0.00011023,2]
[426763919,1782788478000,-194.06747817,0.00011023,2]
[426763922,1782788478000,-500.0,0.00011023,2]
[426763920,1782788478000,-500.0,0.00011023,2]
[426763923,1782788478000,-500.0,0.00011023,2]
[426763924,1782788478000,-387.88066965,0.00011023,2]
[426763926,1782788478000,-500.0,0.00011023,2]
[426763925,1782788478000,-136.86194056,0.00011023,2]
[426763921,1782788478000,-280.20998562,0.00011023,2]
[426763932,1782788479000,-500.0,0.00011023,2]
[426763928,1782788479000,-500.0,0.00011023,2]
[426763927,1782788479000,-500.0,0.00011023,2]
[426763929,1782788479000,-500.0,0.00011023,2]
[426763930,1782788479000,-500.0,0.00011023,2]
[426763931,1782788479000,-500.0,0.00011023,2]
[426763936,1782788479000,-136.86194056,0.00011023,2]
[426763934,1782788479000,-500.0,0.00011023,2]
[426763935,1782788479000,-363.13805944,0.00011023,2]
[426763937,1782788479000,-500.0,0.00011023,2]
[426763938,1782788479000,-500.0,0.00011023,2]
[426763939,1782788479000,-500.0,0.00011023,2]
[426763933,1782788479000,-500.0,0.00011023,2]
[426763942,1782788480000,-500.0,0.00011023,2]
[426763940,1782788480000,-500.0,0.00011023,2]
[426763941,1782788480000,-500.0,0.00011023,2]
[426763944,1782788480000,-500.0,0.00011023,2]
[426763943,1782788480000,-500.0,0.00011023,2]
[426763945,1782788480000,-500.0,0.00011023,2]
[426763947,1782788480000,-136.86194056,0.00011023,2]
[426763949,1782788480000,-500.0,0.00011023,2]
[426763948,1782788480000,-500.0,0.00011023,2]
[426763950,1782788480000,-500.0,0.00011023,2]
[426763951,1782788480000,-500.0,0.00011023,2]
[426763952,1782788480000,-500.0,0.00011023,2]
[426763946,1782788480000,-363.13805944,0.00011023,2]
[426763955,1782788481000,-500.0,0.00011023,2]
[426763954,1782788481000,-500.0,0.00011023,2]
[426763956,1782788481000,-500.0,0.00011023,2]
[426763957,1782788481000,-363.13805944,0.00011023,2]
[426763959,1782788481000,-500.0,0.00011023,2]
[426763960,1782788481000,-162.00611501,0.00011023,2]
[426763953,1782788481000,-500.0,0.00011023,2]
[426763958,1782788481000,-136.86194056,0.00011023,2]
[426763963,1782788481000,-500.0,0.00011023,2]
[426763964,1782788481000,-500.0,0.00011023,2]
[426763962,1782788481000,-500.0,0.00011023,2]
[426763965,1782788481000,-500.0,0.00011023,2]
[426763966,1782788481000,-500.0,0.00011023,2]
[426763961,1782788481000,-500.0,0.00011023,2]
[426763970,1782788482000,-150.0,0.00010915,2]
[426763971,1782788482000,-4850.0,0.00011024,2]
[426763969,1782788482000,-551.13194443,0.00011024,2]
[426763968,1782788482000,-500.0,0.00011024,2]
[426763967,1782788482000,-150.0,0.00011024,2]
[426763973,1782788483000,-401.14194443,0.00011024,2]
[426763972,1782788483000,-4598.85805557,0.00011024,2]
[426763974,1782788484000,-5000.0,0.00011024,2]
[426763976,1782788485000,-401.15194443,0.00011024,2]
[426763975,1782788485000,-4598.84805557,0.00011024,2]
[426763982,1782788486000,-3647.11831382,0.00011025,2]
[426763978,1782788486000,-804.85,0.00011024,2]
[426763981,1782788486000,-152.0,0.00011025,2]
[426763979,1782788486000,-225.03363061,0.00011025,2]
[426763980,1782788486000,-150.0,0.00011025,2]
[426763977,1782788486000,-20.99805557,0.00011024,2]
[426763983,1782788487000,-5000.0,0.00011025,2]
[426763984,1782788488000,-5000.0,0.00011025,2]
[426763985,1782788489000,-5000.0,0.00011025,2]
[426763987,1782788490000,-4850.0,0.00011025,2]
[426763986,1782788490000,-150.0,0.00010969,2]
[426763989,1782788491000,-2001.26833276,0.00011025,2]
[426763988,1782788491000,-2998.73166724,0.00011025,2]
[426763990,1782788492000,-5000.0,0.00011025,2]
[426763991,1782788493000,-5000.0,0.00011025,2]
[426763992,1782788494000,-5000.0,0.00011025,2]
[426763993,1782788495000,-5000.0,0.00011025,2]
[426763994,1782788552000,-5000.0,0.00010925,2]
[426763998,1782788553000,-3500.0,0.00010925,2]
[426763996,1782788553000,-500.0,0.00010924,2]
[426763997,1782788553000,-500.0,0.00010924,2]
[426763995,1782788553000,-500.0,0.00010924,2]
[426763999,1782788554000,-500.0,0.00010924,2]
[426764001,1782788554000,-500.0,0.00010924,2]
[426764002,1782788554000,-509.01993129,0.00010924,2]
[426764003,1782788554000,-500.0,0.00010924,2]
[426764000,1782788554000,-500.0,0.00010924,2]
[426764005,1782788554000,-500.0,0.00010924,2]
[426764008,1782788554000,-490.98006871,0.00010924,2]
[426764006,1782788554000,-500.0,0.00010924,2]
[426764007,1782788554000,-500.0,0.00010924,2]
[426764004,1782788554000,-500.0,0.00010924,2]
[426764009,1782788555000,-9.01993129,0.00010924,2]
[426764010,1782788555000,-500.0,0.00010924,2]
[426764011,1782788555000,-500.0,0.00010924,2]
[426764013,1782788555000,-500.0,0.00010924,2]
[426764012,1782788555000,-500.0,0.00010924,2]
[426764015,1782788555000,-500.0,0.00010924,2]
[426764017,1782788555000,-500.0,0.00010924,2]
[426764018,1782788555000,-500.0,0.00010924,2]
[426764016,1782788555000,-500.0,0.00010924,2]
[426764019,1782788555000,-490.98006871,0.00010924,2]
[426764014,1782788555000,-500.0,0.00010924,2]
[426764023,1782788556000,-500.0,0.00010924,2]
[426764020,1782788556000,-9.01993129,0.00010924,2]
[426764022,1782788556000,-500.0,0.00010924,2]
[426764021,1782788556000,-500.0,0.00010924,2]
[426764024,1782788556000,-500.0,0.00010924,2]
[426764026,1782788556000,-500.0,0.00010924,2]
[426764025,1782788556000,-500.0,0.00010924,2]
[426764029,1782788556000,-500.0,0.00010924,2]
[426764028,1782788556000,-500.0,0.00010924,2]
[426764027,1782788556000,-500.0,0.00010924,2]
[426764030,1782788556000,-490.98006871,0.00010924,2]
[426764033,1782788557000,-500.0,0.00010924,2]
[426764037,1782788557000,-2760.43743149,0.00010925,2]
[426764035,1782788557000,-500.0,0.00010924,2]
[426764036,1782788557000,-230.54263722,0.00010925,2]
[426764034,1782788557000,-500.0,0.00010924,2]
[426764031,1782788557000,-9.01993129,0.00010924,2]
[426764032,1782788557000,-500.0,0.00010924,2]
[426764038,1782788562000,-5000.0,0.00010925,2]
[426764039,1782788563000,-5000.0,0.00010925,2]
[426764040,1782788564000,-5000.0,0.00010925,2]
[426764041,1782788564000,-5000.0,0.00010925,2]
[426764042,1782788569000,-2180.19,0.00010572,2]
[426764043,1782788569000,-2092.98546851,0.00010925,2]
[426764045,1782788569000,-151.0,0.00010925,2]
[426764046,1782788569000,-151.0,0.00010925,2]
[426764047,1782788569000,-273.82453149,0.00011022,2]
[426764044,1782788569000,-151.0,0.00010925,2]
[426764054,1782788570000,-2344.07785281,0.00011023,2]
[426764053,1782788570000,-1156.13093084,0.00011023,2]
[426764052,1782788570000,-417.31982715,0.00011022,2]
[426764051,1782788570000,-500.0,0.00011022,2]
[426764049,1782788570000,-196.14698993,0.00011022,2]
[426764050,1782788570000,-160.14893076,0.00011022,2]